bitfinex/quotes_ETHUSD_20240621
["timestamp","ask_amount","ask_price","bid_price","bid_amount"]
[1718960540321,2.59800913,3466.4,3464.6,0.71527]
[1718960540476,6.14800913,3466.3,3464.6,0.71527]
[1718960540693,0.49969891,3466.2,3464.6,0.71527]
[1718960540874,0.36445898,3466.1,3464.7,0.786797]
[1718960541112,0.49969891,3466.2,3464.0,3.044]
[1718960541328,3.0,3466.8,3464.5,3.044]
[1718960541622,2.59858677,3466.7,3464.8,3.044]
[1718960541775,0.49973264,3466.6,3464.9,0.02269287]
[1718960541977,7.4,3467.8,3465.0,3.044]
[1718960542272,7.4,3467.8,3465.1,0.02269156]
[1718960542273,0.49965655,3466.8,3465.1,0.02269156]
[1718960542416,0.49965655,3466.8,3465.2,3.58155216]
[1718960542622,6.8121,3467.6,3465.4,3.044]
[1718960542833,2.59801118,3467.5,3465.5,0.02273101]
[1718960543028,0.49962152,3467.4,3465.7,9.9834]
[1718960543323,0.49962152,3467.5,3465.7,9.9834]
[1718960543521,2.09833714,3467.4,3465.6,0.3616731]
[1718960543682,2.09833714,3467.4,3465.3,3.0]
[1718960543683,1.44062739,3467.3,3465.3,3.0]
[1718960543884,0.49962152,3467.2,3465.3,3.0]
[1718960544197,2.09857869,3467.1,3465.2,7.78805216]
[1718960544392,0.94100587,3467.3,3465.3,3.82280522]
[1718960544597,2.59812616,3467.2,3465.3,3.82280522]
[1718960544874,5.59812616,3467.1,3465.3,0.77880522]
[1718960545155,2.09848537,3467.0,3465.3,0.77880522]
[1718960545323,0.49968375,3466.9,3465.3,0.77880522]
[1718960545533,3.49968375,3466.9,3465.4,0.80293052]
[1718960545731,2.59836587,3466.8,3465.4,0.80293052]
[1718960545953,0.94100587,3467.3,3465.4,0.80293052]
[1718960545954,3.49966759,3466.7,3465.4,0.80293052]
[1718960546143,0.49966759,3466.6,3465.5,0.80534305]
[1718960546347,0.49966759,3467.2,3465.5,0.80534305]
[1718960546647,2.09864358,3467.1,3465.5,0.80534305]
[1718960546856,0.49966759,3467.0,3465.5,0.80534305]
[1718960547010,2.09864358,3466.9,3465.5,0.80534305]
[1718960547208,0.49966759,3466.8,3465.5,0.80534305]
[1718960547435,3.0,3466.8,3465.6,3.97893431]
[1718960547637,3.0,3467.0,3465.6,3.97893431]
[1718960547824,3.0,3467.5,3465.6,3.97893431]
[1718960548176,0.49959504,3467.4,3466.0,3.044]
[1718960548467,0.49959504,3467.4,3466.1,0.05764877]
[1718960548629,0.49959504,3467.8,3466.1,0.05764877]
[1718960548947,0.3221595,3467.8,3466.2,4.05160488]
[1718960549154,0.3221595,3467.8,3466.3,0.05764544]
[1718960549483,2.09802659,3467.7,3466.3,0.05764544]
[1718960549618,0.49959504,3467.6,3466.2,4.05160488]
[1718960549949,3.49959504,3467.6,3466.3,0.40516049]
[1718960550153,0.49959504,3467.5,3466.3,0.40516049]
[1718960550381,0.51421861,3467.7,3466.3,0.40516049]
[1718960550515,2.59763739,3467.6,3466.2,1.00760488]
[1718960550833,7.024,3467.4,3465.3,14.1254]
[1718960551021,3.1476731,3467.3,3465.3,6.7554]
[1718960551223,3.1476731,3467.3,3464.8,3.044]
[1718960551224,2.5976731,3467.2,3464.8,3.044]
[1718960551420,2.722,3466.8,3464.7,7.0986]
[1718960551624,2.5976731,3466.7,3464.7,7.0986]
[1718960551820,2.5976731,3466.6,3464.7,7.0986]
[1718960552050,3.49955344,3466.5,3464.8,3.044]
[1718960552211,0.49955344,3466.4,3464.8,3.044]
[1718960552409,0.49955344,3466.6,3464.9,1.01426]
[1718960552660,2.09885451,3466.5,3464.9,1.01426]
[1718960552843,0.49955344,3466.4,3464.9,1.01426]
[1718960553216,3.49971429,3466.4,3464.9,4.05826]
[1718960553415,0.49971429,3466.3,3465.0,1.346585]
[1718960553617,3.0,3467.1,3465.0,1.346585]
[1718960553848,2.722,3466.7,3464.2,7.4118]
[1718960554019,2.64887118,3466.6,3464.2,7.4118]
[1718960554213,2.59860777,3466.5,3464.2,7.4118]
[1718960554447,6.14870467,3466.4,3464.2,7.4118]
[1718960554648,2.59870467,3466.3,3464.2,7.4118]
[1718960554873,6.8506,3466.1,3464.3,0.74118]
[1718960555165,2.59870467,3466.0,3464.3,0.74118]
[1718960555327,2.59870467,3465.9,3464.3,0.74118]
[1718960555527,5.59870467,3465.8,3464.3,0.74118]
[1718960555757,2.59870467,3465.7,3464.3,0.74118]
[1718960555976,5.09887118,3465.6,3464.4,0.815298]
[1718960556137,2.09887118,3465.5,3464.4,0.815298]
[1718960556340,0.49987543,3465.4,3464.4,0.815298]
[1718960556543,2.09887118,3465.3,3464.4,0.815298]
[1718960556745,0.49987543,3465.2,3464.4,0.815298]
[1718960556988,3.49987543,3465.2,3464.5,0.8227098]
[1718960557147,6.8506,3466.1,3464.5,0.8227098]
[1718960557348,5.5989899,3466.0,3464.5,0.8227098]
[1718960557544,2.5989899,3465.9,3464.5,0.8227098]
[1718960557776,3.49981635,3465.8,3464.5,0.8227098]
[1718960557946,3.49981635,3465.7,3464.5,0.8227098]
[1718960558267,3.0,3466.0,3464.5,0.8227098]
[1718960558473,2.59884571,3465.9,3464.5,3.8667098]
[1718960558677,3.0,3465.8,3464.6,0.38667098]
[1718960558971,3.0,3466.0,3464.6,0.38667098]
[1718960559139,0.49975289,3465.9,3464.6,0.38667098]
[1718960559470,0.49975289,3466.5,3464.7,3.46933808]
[1718960559674,2.09891123,3466.4,3464.7,4.01933808]
[1718960559833,0.49975289,3466.3,3464.7,0.97533808]
[1718960560035,2.09891123,3466.2,3464.5,3.8667098]
[1718960560244,0.49975289,3466.1,3464.5,3.8667098]
[1718960560569,3.49975289,3466.1,3464.5,3.8667098]
[1718960560740,0.49975289,3466.0,3464.6,0.38667098]
[1718960561087,3.0,3466.6,3464.8,3.044]
[1718960561088,0.49975289,3466.5,3464.8,3.044]
[1718960561274,3.0,3466.6,3465.0,5.35277]
[1718960561474,6.9313,3467.3,3465.0,5.35277]
[1718960561475,3.0,3467.2,3465.2,3.044]
[1718960561794,3.0,3467.2,3465.6,2.30839]
[1718960561933,0.51421861,3467.7,3465.6,2.30839]
[1718960561934,0.49958231,3467.1,3465.7,3.594]
[1718960562138,0.49958231,3468.0,3465.7,5.90228]
[1718960562338,2.09818795,3467.9,3465.7,3.594]
[1718960562572,0.49955091,3467.8,3465.9,3.044]
[1718960562773,2.09818795,3467.7,3465.9,3.044]
[1718960562977,2.09818795,3467.7,3466.1,3.044]
[1718960562978,0.49955091,3467.6,3466.1,3.044]
[1718960563152,2.09796387,3467.5,3466.2,1.02625]
[1718960563564,0.74308823,3467.9,3466.2,1.02625]
[1718960563784,2.59750422,3467.8,3466.2,1.02625]
[1718960563953,2.59750422,3467.7,3466.2,1.02625]
[1718960564154,2.59750422,3467.6,3466.2,1.02625]
[1718960564376,2.09797951,3467.5,3466.3,1.128875]
[1718960564561,2.09797951,3467.4,3466.3,1.128875]
[1718960565029,2.09797951,3467.3,3466.3,1.128875]
[1718960565309,3.0,3468.0,3466.3,1.128875]
[1718960565477,3.59070821,3467.9,3466.4,0.4172875]
[1718960565682,3.59070821,3467.9,3466.3,1.128875]
[1718960565683,5.59757821,3467.8,3466.3,1.128875]
[1718960565878,5.59757821,3467.7,3466.3,1.128875]
[1718960566103,3.14757821,3467.6,3465.5,14.6171]
[1718960566418,1.28263,3467.9,3465.5,7.2471]
[1718960566419,2.59757821,3467.5,3465.5,7.2471]
[1718960566606,3.14757821,3467.4,3465.6,0.72471]
[1718960566802,5.59757821,3467.3,3465.6,0.72471]
[1718960567002,2.59794203,3467.2,3465.7,4.145581]
[1718960567203,2.59794203,3467.1,3465.9,3.044]
[1718960567510,3.0,3468.0,3465.9,3.044]
[1718960567511,3.0,3467.6,3465.9,3.044]
[1718960567673,2.09812217,3467.5,3466.1,3.044]
[1718960567878,2.59766108,3467.4,3466.1,3.044]
[1718960568089,6.9313,3468.1,3466.2,0.821036]
[1718960568090,2.09801493,3467.3,3466.2,0.821036]
[1718960568298,7.92443,3468.1,3466.2,0.821036]
[1718960568499,2.597443,3468.0,3466.2,0.821036]
[1718960568705,2.597443,3467.9,3466.1,3.044]
[1718960568911,5.597443,3467.8,3466.1,3.044]
[1718960569211,2.597443,3467.7,3465.8,3.044]
[1718960569408,2.597443,3467.6,3465.9,6.5310291]
[1718960569613,2.597443,3467.5,3465.9,6.5310291]
[1718960569817,2.597443,3467.4,3466.0,0.76326101]
[1718960570111,2.597443,3467.3,3466.0,3.80726101]
[1718960570343,3.0,3467.8,3466.2,3.044]
[1718960570475,2.5975213,3467.7,3466.2,3.044]
[1718960570680,5.09799314,3467.6,3466.2,3.044]
[1718960570909,2.5975246,3467.5,3466.2,3.044]
[1718960571076,3.0,3468.0,3466.3,0.4357261]
[1718960571296,2.59756231,3467.9,3466.3,0.4357261]
[1718960571509,5.59756231,3467.8,3466.3,0.4357261]
[1718960571813,2.59749539,3467.7,3466.3,0.4357261]
[1718960571999,5.59748768,3467.6,3466.4,0.40297261]
[1718960572203,2.09797072,3467.5,3466.4,3.44697261]
[1718960572401,2.09797072,3467.5,3466.5,10.2787]
[1718960572604,3.0,3468.4,3466.6,4.34295326]
[1718960572817,2.64800847,3468.7,3466.6,4.34295326]
[1718960572818,2.59718712,3468.3,3466.6,4.34295326]
[1718960573025,2.59718712,3468.2,3466.8,5.35154]
[1718960573228,10.2297,3469.3,3466.9,3.76404933]
[1718960573522,2.09744384,3469.2,3467.2,2.30733]
[1718960573735,2.09744384,3469.2,3467.1,3.044]
[1718960573736,2.59680267,3469.2,3467.3,10.57033574]
[1718960574015,2.59680267,3469.1,3467.4,6.044]
[1718960574215,2.59680267,3469.0,3467.5,0.05763241]
[1718960574425,7.3933,3469.7,3467.6,3.044]
[1718960574607,3.33562357,3469.6,3467.7,4.01619232]
[1718960574930,2.59629357,3469.5,3467.7,3.95856324]
[1718960575134,2.59629357,3469.4,3467.7,0.91456324]
[1718960575430,5.59629357,3469.3,3467.4,3.0]
[1718960575730,2.59629357,3469.2,3467.4,3.0]
[1718960575934,5.59629357,3469.1,3467.3,6.9187]
[1718960576155,2.59629357,3469.0,3467.3,6.9187]
[1718960576315,3.0,3469.1,3467.4,1.0930615]
[1718960576316,5.09700958,3468.9,3467.4,1.0930615]
[1718960576639,5.09731104,3468.8,3467.4,1.0930615]
[1718960576932,3.0,3468.7,3467.4,4.1370615]
[1718960577238,3.0,3469.1,3467.4,4.1370615]
[1718960577450,3.0,3469.3,3467.5,1.66382565]
[1718960577608,2.09717337,3469.2,3467.5,1.66382565]
[1718960578009,2.09717337,3469.2,3467.6,3.044]
[1718960578250,3.0,3469.5,3467.6,5.35106]
[1718960578546,0.7949169,3469.5,3467.7,3.97620656]
[1718960580771,0.7949169,3469.5,3467.7,0.93220656]
[1718960580995,5.86650684,3469.4,3467.3,6.9187]
[1718960581199,7.1756,3468.8,3466.0,2.30811]
[1718960581353,7.1756,3468.8,3466.1,7.0373]
[1718960581354,2.09711857,3468.7,3466.1,7.0373]
[1718960581537,2.09711857,3468.7,3466.2,1.27573]
[1718960581538,1.23879795,3468.6,3466.2,1.27573]
[1718960581881,2.59658652,3468.5,3466.3,3.044]
[1718960582032,5.09711857,3468.4,3466.5,3.044]
[1718960582236,3.73933,3468.6,3466.7,3.044]
[1718960582506,5.09758693,3468.5,3466.7,3.044]
[1718960582628,3.0,3468.5,3466.7,3.044]
[1718960582829,0.73933,3468.6,3466.7,3.044]
[1718960583028,2.09763488,3468.5,3466.7,3.044]
[1718960583270,3.7949169,3468.5,3466.8,1.00813]
[1718960583573,3.0,3468.4,3466.8,4.05213]
[1718960583879,0.7949169,3468.5,3466.8,4.05213]
[1718960584434,0.7949169,3468.5,3466.8,1.00813]
[1718960584629,0.87896083,3468.4,3466.9,1.108943]
[1718960584869,3.0,3469.3,3466.9,4.152943]
[1718960584870,3.0,3468.9,3466.9,4.152943]
[1718960585090,0.49941592,3468.8,3466.9,4.152943]
[1718960585260,2.09754837,3468.7,3466.9,1.108943]
[1718960585437,2.80671913,3468.6,3466.9,1.108943]
[1718960585631,5.59696429,3468.5,3466.9,1.108943]
[1718960585837,2.59713244,3468.4,3466.9,1.108943]
[1718960586098,3.0,3468.3,3466.6,7.0373]
[1718960586383,3.14728214,3468.2,3466.6,7.0373]
[1718960586596,2.59728214,3468.1,3466.6,7.0373]
[1718960586754,0.55,3468.2,3466.6,7.0373]
[1718960586755,3.14728214,3468.0,3466.6,7.0373]
[1718960587079,3.14728214,3468.0,3466.3,8.501303]
[1718960587080,6.51701035,3467.9,3466.3,8.501303]
[1718960587276,2.72,3467.3,3465.7,7.37]
[1718960587523,2.09778713,3467.2,3465.7,7.37]
[1718960587688,3.14748459,3467.2,3465.5,7.1738]
[1718960587835,6.86785099,3467.1,3465.6,0.71738]
[1718960588034,3.14748253,3467.0,3465.1,7.37]
[1718960588339,3.14748253,3467.0,3465.0,7.1297]
[1718960588340,8.31748253,3466.9,3465.0,7.1297]
[1718960588585,3.14761296,3466.8,3464.0,7.1026]
[1718960588873,5.59761296,3466.7,3464.0,10.1466]
[1718960589076,5.59761296,3466.7,3464.2,3.044]
[1718960589077,3.14761296,3466.6,3464.2,3.044]
[1718960589293,5.59761296,3466.5,3464.2,3.044]
[1718960589571,6.14761296,3466.4,3464.2,3.044]
[1718960589782,6.14761296,3466.4,3464.1,1.517618]
[1718960589783,2.59761296,3466.3,3464.3,7.2104218]
[1718960589938,3.55,3466.4,3464.3,4.2104218]
[1718960589939,5.59759501,3466.2,3464.3,4.2104218]
[1718960590143,2.59759501,3466.1,3464.3,4.2104218]
[1718960590343,5.59759501,3466.0,3464.4,0.57280398]
[1718960590543,2.59759501,3465.9,3464.4,0.57280398]
[1718960590797,3.0,3466.0,3464.4,0.57280398]
[1718960590798,5.09778713,3465.8,3464.4,0.57280398]
[1718960590942,3.0,3465.7,3464.4,0.57280398]
[1718960591141,3.0,3466.0,3464.5,0.53595646]
[1718960591394,3.0,3466.3,3464.5,0.53595646]
[1718960591545,2.59885401,3466.2,3464.5,0.53595646]
[1718960591743,3.0,3466.3,3464.5,0.53595646]
[1718960591744,5.59885401,3466.1,3464.6,3.044]
[1718960592070,3.0,3466.3,3464.9,10.1601]
[1718960592270,3.0,3466.8,3465.0,0.0576967]
[1718960592457,2.59856612,3466.7,3464.9,7.1161]
[1718960592643,2.59856612,3466.6,3464.9,7.1161]
[1718960592855,6.21346546,3466.5,3465.0,0.71161]
[1718960593062,5.31860885,3466.4,3464.9,7.1161]
[1718960593283,5.59860885,3466.3,3464.9,7.1161]
[1718960593467,2.59860885,3466.2,3464.9,7.1161]
[1718960593788,3.0,3466.3,3464.9,10.1601]
[1718960594019,3.0,3467.1,3465.0,0.71161]
[1718960594283,3.0,3467.1,3465.0,3.75561]
[1718960594284,2.59859726,3467.0,3465.0,3.75561]
[1718960594486,5.59859726,3466.9,3465.0,3.75561]
[1718960594708,5.59859726,3466.9,3465.1,4.18886262]
[1718960594709,2.59859726,3466.8,3465.1,4.18886262]
[1718960594910,2.64771133,3467.7,3465.1,4.18886262]
[1718960594911,2.72,3467.7,3465.3,5.3526]
[1718960595166,2.72,3467.7,3465.7,3.044]
[1718960595167,5.5979888,3467.6,3465.7,3.044]
[1718960595440,2.09836749,3467.5,3465.8,4.257407]
[1718960595583,2.72,3467.7,3465.8,1.213407]
[1718960595786,0.49962573,3467.4,3465.9,1.1039107]
[1718960595985,2.72,3467.2,3465.6,6.7817]
[1718960596251,2.72,3467.2,3464.4,7.37]
[1718960596252,2.09841756,3467.1,3465.0,7.2234]
[1718960596526,2.72,3466.7,3465.0,14.5934]
[1718960596716,2.09841756,3466.6,3465.0,7.2234]
[1718960596913,0.49973547,3466.5,3465.0,7.2234]
[1718960597122,2.72,3466.7,3465.1,0.72234]
[1718960597421,5.09880992,3466.6,3465.1,0.72234]
[1718960597621,3.0,3466.6,3465.1,0.72234]
[1718960597820,2.09880437,3466.5,3465.1,0.72234]
[1718960598004,3.0,3466.6,3465.1,0.72234]
[1718960598329,3.0,3466.6,3465.2,0.794574]
[1718960598632,3.0,3466.6,3465.2,3.838574]
[1718960598833,3.0,3467.1,3465.2,3.838574]
[1718960599028,3.0,3467.1,3465.4,3.044]
[1718960599327,2.72,3467.7,3465.8,9.8199]
[1718960599489,5.0981966,3467.6,3465.9,0.05767588]
[1718960599690,2.0981966,3467.5,3465.9,0.05767588]
[1718960600218,2.0981964,3467.4,3465.9,0.05767588]
[1718960600530,2.72,3467.7,3465.9,0.05767588]
[1718960600696,2.86979897,3467.6,3465.9,0.98775759]
[1718960600892,2.59779897,3467.5,3465.9,0.98775759]
[1718960601247,0.272,3467.6,3465.9,0.98775759]
[1718960601248,2.59779897,3467.4,3465.9,0.98775759]
[1718960601442,0.272,3467.6,3465.9,0.98775759]
[1718960601443,5.09819051,3467.3,3465.9,0.98775759]
[1718960601726,5.09819051,3467.3,3466.0,0.77636576]
[1718960601727,2.09819051,3467.2,3466.0,0.77636576]
[1718960602033,5.09819051,3467.2,3466.0,0.77636576]
[1718960602337,2.09819051,3467.1,3466.0,0.77636576]
[1718960602535,5.09819051,3467.1,3466.0,0.77636576]
[1718960602752,2.09819051,3467.0,3466.0,0.77636576]
[1718960602953,2.09819051,3467.0,3466.1,0.75522658]
[1718960603108,2.09819051,3466.9,3466.1,0.75522658]
[1718960603303,2.09819051,3466.8,3466.1,0.75522658]
[1718960603504,3.0,3467.2,3466.1,0.75522658]
[1718960603707,2.0984556,3467.1,3466.1,0.75522658]
[1718960603943,3.0,3467.6,3466.1,0.75522658]
[1718960604130,2.09822402,3467.5,3466.1,3.79922658]
[1718960604330,2.09822402,3467.5,3466.3,3.044]
[1718960604545,2.09822402,3467.5,3466.2,0.37992266]
[1718960604806,2.09822402,3467.5,3466.1,0.75522658]
[1718960604808,2.72,3467.5,3466.1,0.75522658]
[1718960605008,2.59803667,3467.4,3466.1,0.75522658]
[1718960605210,2.59803667,3467.3,3466.1,0.75522658]
[1718960605515,2.59805247,3467.2,3466.1,0.75522658]
[1718960605743,2.72,3467.7,3466.1,0.75522658]
[1718960605744,2.09840798,3467.1,3466.1,0.75522658]
[1718960606017,2.72,3467.7,3466.1,0.75522658]
[1718960606246,2.72,3467.7,3466.1,3.79922658]
[1718960606247,5.09817717,3467.6,3466.1,3.79922658]
[1718960606447,2.09817717,3467.5,3466.2,0.37992266]
[1718960606666,0.49957186,3467.4,3466.1,0.75522658]
[1718960606875,2.09817717,3467.3,3466.1,0.75522658]
[1718960607022,0.49957186,3467.2,3466.1,0.75522658]
[1718960607218,2.09817717,3467.1,3466.1,0.75522658]
[1718960607441,0.49964797,3467.0,3466.1,0.75522658]
[1718960607625,2.09817717,3466.9,3466.1,0.75522658]
[1718960608219,2.09817717,3466.8,3466.1,0.75522658]
[1718960608421,2.09817717,3466.7,3465.6,7.37]
[1718960608623,2.72,3467.2,3465.2,7.4478]
[1718960608624,2.59786864,3466.6,3465.2,7.4478]
[1718960608873,3.8395,3467.5,3465.2,7.4478]
[1718960608874,5.8576555,3466.5,3465.2,7.4478]
[1718960609074,2.09817717,3466.4,3465.2,7.4478]
[1718960609359,0.49969147,3466.3,3465.2,7.4478]
[1718960609513,2.09817717,3466.2,3464.6,14.412]
[1718960609716,0.49969147,3466.1,3464.7,1.4412]
[1718960609913,2.09817717,3466.0,3464.7,1.4412]
[1718960610202,0.49979588,3465.9,3464.7,1.4412]
[1718960610451,2.09817717,3465.8,3464.7,1.4412]
[1718960610612,0.49979588,3465.7,3464.6,7.042]
[1718960611016,9.93828451,3466.6,3464.6,7.042]
[1718960611017,0.49979588,3465.9,3464.6,7.042]
[1718960611225,2.09910561,3465.8,3464.6,7.042]
[1718960611424,2.09917841,3465.7,3464.7,0.7042]
[1718960611628,9.93828451,3466.6,3464.7,0.7042]
[1718960611629,3.0,3466.5,3464.7,0.7042]
[1718960611824,3.14899611,3466.4,3464.7,0.7042]
[1718960612056,5.59899611,3466.3,3464.7,0.7042]
[1718960612267,2.59899611,3466.2,3464.7,0.7042]
[1718960612479,5.59899611,3466.1,3464.8,3.81862]
[1718960612758,17.0617,3467.2,3465.0,3.044]
[1718960612759,6.14817957,3467.1,3465.0,3.044]
[1718960612973,2.09864764,3467.0,3465.4,3.044]
[1718960613118,2.59830709,3467.0,3465.5,0.02308425]
[1718960613318,2.59830709,3466.9,3465.5,0.02308425]
[1718960613556,0.49965829,3466.8,3465.6,1.00322843]
[1718960613716,0.49965829,3467.3,3465.7,0.02308291]
[1718960613921,2.09845683,3467.2,3465.7,0.02308291]
[1718960614233,0.49965829,3467.1,3465.7,0.02308291]
[1718960614430,0.49965829,3467.1,3465.6,1.00322843]
[1718960614431,2.09845683,3467.0,3465.6,1.00322843]
[1718960614624,0.49965829,3466.9,3465.6,1.00322843]
[1718960614955,2.09845683,3466.8,3465.6,1.00322843]
[1718960615170,2.09845683,3466.8,3465.1,7.37]
[1718960615171,2.72,3466.6,3465.1,7.37]
[1718960615322,2.72,3466.6,3464.8,7.60342]
[1718960615323,2.59811512,3466.5,3464.8,7.60342]
[1718960615519,3.12992663,3466.4,3464.9,0.760342]
[1718960615827,5.09845683,3466.3,3464.9,0.760342]
[1718960616036,3.0,3466.5,3464.9,0.760342]
[1718960616037,0.49975955,3466.2,3464.9,0.760342]
[1718960616218,2.09891441,3466.1,3464.9,0.760342]
[1718960616419,0.49975955,3466.0,3465.0,0.8363762]
[1718960616619,0.49975955,3466.2,3465.0,0.8363762]
[1718960616866,0.49975955,3466.4,3465.0,0.8363762]
[1718960617044,2.098871,3466.3,3465.0,0.8363762]
[1718960617222,0.49975955,3466.2,3465.1,0.84397962]
[1718960617417,3.49975955,3466.2,3465.1,0.84397962]
[1718960617757,0.49975955,3466.1,3465.1,0.84397962]
[1718960618265,0.49975955,3466.4,3465.1,0.84397962]
[1718960618559,2.09880501,3466.3,3465.1,0.84397962]
[1718960618741,5.09880501,3466.3,3465.1,0.84397962]
[1718960618928,3.0,3467.0,3465.1,0.84397962]
[1718960618929,3.49974821,3466.2,3465.1,0.84397962]
[1718960619120,0.49974821,3466.1,3465.1,0.84397962]
[1718960619319,1.09273278,3466.9,3465.1,0.84397962]
[1718960619555,2.64882036,3466.8,3465.1,0.84397962]
[1718960619753,5.59856857,3466.7,3465.1,0.84397962]
[1718960619959,5.09882036,3466.6,3465.2,0.01826815]
[1718960620136,2.59856857,3466.5,3465.2,0.01826815]
[1718960620325,0.68127328,3466.8,3465.1,0.84397962]
[1718960620326,5.59848741,3466.4,3465.1,0.84397962]
[1718960620528,6.15833615,3466.3,3465.1,0.84397962]
[1718960620825,2.59848741,3466.2,3465.1,0.84397962]
[1718960621028,3.49974821,3466.1,3465.1,0.84397962]
[1718960621221,0.49974821,3466.0,3465.1,0.84397962]
[1718960621462,0.68127328,3466.8,3465.1,0.84397962]
[1718960621758,2.51694997,3466.7,3465.2,3.10169984]
[1718960621932,5.09884782,3466.6,3465.2,3.044]
[1718960622120,2.09884782,3466.5,3465.2,3.044]
[1718960622321,0.49972918,3466.4,3465.3,6.8542]
[1718960622521,0.49972918,3466.4,3465.4,1.07421796]
[1718960622760,0.49972918,3466.9,3465.4,1.07421796]
[1718960622931,2.09862806,3466.8,3465.4,1.07421796]
[1718960623137,2.59835724,3466.7,3465.4,1.07421796]
[1718960623325,2.85819296,3466.6,3465.4,1.07421796]
[1718960623527,5.59835724,3466.5,3465.4,1.07421796]
[1718960623732,2.59835724,3466.4,3465.4,1.07421796]
[1718960624055,2.59835724,3466.3,3464.8,0.77462]
[1718960624254,5.59835724,3466.2,3464.8,0.77462]
[1718960624441,5.59835724,3466.1,3464.7,7.168]
[1718960624644,2.59847293,3466.0,3464.7,7.168]
[1718960624849,5.59847187,3465.9,3464.7,7.168]
[1718960625157,2.59847187,3465.8,3464.8,1.4538]
[1718960625358,5.59847187,3465.7,3464.7,7.168]
[1718960625545,2.59847187,3465.6,3464.7,7.168]
[1718960625751,3.0,3465.7,3464.7,7.168]
[1718960625752,2.59847187,3465.5,3464.7,7.168]
[1718960625949,5.59847187,3465.4,3464.2,7.498]
[1718960626128,3.0,3465.7,3464.3,2.7148]
[1718960626129,2.59847187,3465.3,3464.3,2.7148]
[1718960626327,2.59847187,3465.2,3464.3,2.7148]
[1718960626530,2.59847187,3465.1,3463.7,7.37]
[1718960626731,2.59847187,3465.0,3463.7,7.37]
[1718960627048,2.59847187,3464.9,3463.8,1.41597]
[1718960627235,2.59954726,3464.8,3463.8,1.41597]
[1718960627548,3.0,3465.3,3463.7,7.37]
[1718960627549,2.59954726,3464.7,3463.7,7.37]
[1718960627799,2.72,3464.5,3463.1,7.37]
[1718960628122,2.72,3464.5,3463.0,6.8403]
[1718960628123,2.59968889,3464.4,3463.0,6.8403]
[1718960628424,2.59968889,3464.3,3463.1,0.68403]
[1718960628735,2.59968889,3464.3,3462.5,7.37]
[1718960628736,5.59968889,3464.2,3462.5,7.37]
[1718960629049,2.72,3464.0,3462.5,7.37]
[1718960629229,6.14968889,3463.9,3462.5,7.37]
[1718960629431,2.59968889,3463.8,3462.5,7.37]
[1718960629569,3.55,3463.9,3462.3,6.7941]
[1718960629570,6.04213118,3463.7,3462.3,6.7941]
[1718960629773,2.72,3463.5,3462.0,1.156953]
[1718960629982,2.59968889,3463.4,3462.0,1.156953]
[1718960630179,2.72,3463.5,3462.1,0.8526953]
[1718960630180,5.59968889,3463.3,3462.1,0.8526953]
[1718960630388,2.09970345,3463.2,3462.0,1.156953]
[1718960630612,0.5002221,3463.1,3462.0,1.156953]
[1718960630832,2.09970345,3463.0,3462.0,1.156953]
[1718960630971,1.06012915,3462.9,3462.0,1.156953]
[1718960631181,2.09970345,3462.8,3462.0,1.156953]
[1718960631482,2.72,3462.5,3462.0,1.156953]
[1718960631683,2.09970345,3462.4,3462.0,1.156953]
[1718960631925,0.55,3462.3,3462.0,1.156953]
[1718960632144,2.63167234,3462.2,3462.0,1.156953]
[1718960632293,2.09970345,3462.1,3462.0,1.156953]
[1718960632494,5.09970345,3462.1,3462.0,1.156953]
[1718960632844,5.09970345,3462.1,3460.7,7.37]
[1718960633028,5.09970345,3462.1,3460.6,7.3626]
[1718960633029,2.09970345,3462.0,3460.6,7.3626]
[1718960633311,2.72,3463.5,3460.7,3.79654993]
[1718960633513,5.10123288,3463.1,3461.2,2.31133]
[1718960633858,3.0,3463.6,3461.3,3.275133]
[1718960634041,3.0,3463.0,3461.3,3.275133]
[1718960634214,3.0,3463.0,3461.3,0.231133]
[1718960634396,2.10105983,3462.9,3461.3,0.231133]
[1718960634720,2.31116581,3462.8,3461.4,0.05776782]
[1718960634875,0.21010598,3462.8,3461.3,0.231133]
[1718960635226,3.0,3463.2,3461.3,0.231133]
[1718960635439,2.65125765,3463.1,3461.3,0.231133]
[1718960635725,5.10125765,3463.0,3461.3,0.231133]
[1718960635934,2.65125765,3462.9,3461.3,0.231133]
[1718960636095,2.42138341,3462.8,3461.3,0.231133]
[1718960636278,3.32012576,3462.8,3461.3,0.231133]
[1718960636482,2.72,3462.3,3460.7,0.73626]
[1718960636786,2.72,3462.3,3460.3,14.3401]
[1718960637004,3.55,3462.2,3460.3,14.3401]
[1718960637779,3.0,3462.2,3460.3,17.3841]
[1718960637974,3.0,3462.2,3460.4,1.73841]
[1718960638715,3.0,3462.6,3460.4,1.73841]
[1718960639033,3.0,3462.6,3460.8,3.044]
[1718960639232,3.0,3462.6,3460.7,2.31163]
[1718960639233,2.72,3463.3,3460.7,3.044]
[1718960639377,6.2895,3463.2,3460.5,6.8665]
[1718960639576,6.2895,3463.2,3460.6,3.0]
[1718960639825,2.72,3462.8,3460.7,1.55865]
[1718960640122,2.72,3462.8,3460.5,6.8665]
[1718960640123,3.0,3462.7,3460.5,6.8665]
[1718960640415,7.4767,3462.6,3460.5,6.8665]
[1718960640620,3.0,3462.5,3460.5,6.8665]
[1718960640912,0.90095,3462.6,3460.6,0.68665]
[1718960641076,0.90095,3462.6,3460.5,6.8665]
[1718960641077,7.0675,3462.5,3460.1,2.72]
[1718960641281,2.72,3461.9,3459.1,3.044]
[1718960641500,0.55,3461.8,3459.4,6.8367]
[1718960641701,0.627,3461.7,3459.5,0.69546728]
[1718960641925,0.55,3461.6,3459.5,0.69546728]
[1718960642134,0.627,3461.7,3459.5,6.05193728]
[1718960642424,3.0,3461.8,3459.8,3.044]
[1718960642594,3.0,3461.8,3460.3,3.044]
[1718960642918,2.72,3462.9,3460.9,2.31153]
[1718960643240,2.72,3462.9,3461.0,0.46232]